bitfinex-derivatives/quotes_SOLF0:USTF0_20260310
["timestamp","ask_amount","ask_price","bid_price","bid_amount"]
[1773103709600,3.80300351,85.769,85.71,9.32613289]
[1773103709601,3.80300351,85.769,85.716,3.72551389]
[1773103710202,14.29600351,85.767,85.716,3.72551389]
[1773103711199,3.80300351,85.781,85.721,3.72551389]
[1773103712399,10.491,85.779,85.728,3.72551389]
[1773103713001,10.492,85.774,85.728,3.72551389]
[1773103713705,3.74783265,85.773,85.713,3.64599578]
[1773103714406,10.493,85.76,85.713,3.64599578]
[1773103714600,3.74783265,85.759,85.699,3.64599578]
[1773103715503,10.494,85.756,85.702,3.64599578]
[1773103715708,10.494,85.756,85.71,3.48131876]
[1773103715896,10.494,85.756,85.72,3.48131876]
[1773103716096,10.494,85.756,85.664,46.68927163]
[1773103716097,3.74783265,85.773,85.73,3.48131876]
[1773103717105,3.74783265,85.773,85.74,3.48131876]
[1773103717305,3.74783265,85.788,85.74,3.48131876]
[1773103718409,10.492,85.771,85.74,3.48131876]
[1773103722612,3.74783265,85.763,85.702,3.64599578]
[1773103722815,163.117,85.824,85.648,49.49628342]
[1773103722816,3.74783265,85.749,85.69,3.48131876]
[1773103723621,3.74783265,85.736,85.7,3.48131876]
[1773103725724,10.497,85.731,85.7,3.48131876]
[1773103727620,10.495,85.748,85.711,3.64599578]
[1773103727826,3.74783265,85.747,85.71,3.48131876]
[1773103729426,10.495,85.746,85.71,3.48131876]
[1773103730228,3.74783265,85.761,85.73,3.48131876]
[1773103731630,3.74783265,85.761,85.718,3.87913624]
[1773103732233,3.74783265,85.761,85.719,10.57082543]
[1773103732827,3.74783265,85.761,85.718,14.44996167]
[1773103733231,3.74783265,85.761,85.72,10.57082543]
[1773103734330,3.74783265,85.761,85.721,10.57082543]
[1773103734530,3.74783265,85.761,85.719,10.57082543]
[1773103735029,10.492,85.774,85.726,3.87913624]
[1773103735232,10.492,85.774,85.726,14.44996167]
[1773103735433,10.492,85.772,85.726,14.44996167]
[1773103735632,14.13399947,85.772,85.726,14.44996167]
[1773103735933,10.492,85.768,85.726,14.44996167]
[1773103736134,3.64199947,85.767,85.726,3.87913624]
[1773103736330,3.64199947,85.767,85.71,9.3206196]
[1773103736331,3.64199947,85.767,85.718,10.57082543]
[1773103736539,10.494,85.756,85.72,10.57082543]
[1773103736735,10.494,85.756,85.718,10.57082543]
[1773103737337,10.494,85.756,85.721,10.57082543]
[1773103737532,10.493,85.764,85.721,10.57082543]
[1773103737735,3.64199947,85.767,85.724,3.87913624]
[1773103739135,3.64199947,85.767,85.724,14.44996167]
[1773103739335,3.64199947,85.767,85.724,3.87913624]
[1773103740431,3.64199947,85.767,85.724,14.44996167]
[1773103740827,10.492,85.772,85.729,3.87913624]
[1773103741033,10.491,85.78,85.73,3.87913624]
[1773103741232,3.64199947,85.781,85.73,3.87913624]
[1773103741233,3.64199947,85.781,85.731,3.87913624]
[1773103741533,63.95182607,85.863,85.731,3.87913624]
[1773103741534,3.64199947,85.795,85.751,3.87913624]
[1773103741738,10.488,85.803,85.756,3.87913624]
[1773103742727,10.488,85.803,85.743,14.25591908]
[1773103742728,3.64199947,85.813,85.765,3.87913624]
[1773103742933,3.64199947,85.813,85.769,14.44996167]
[1773103743132,3.64199947,85.813,85.769,3.87913624]
[1773103743733,10.487,85.811,85.769,3.87913624]
[1773103744029,3.9726696,85.81,85.757,10.57082543]
[1773103744227,3.9726696,85.81,85.755,14.4069823]
[1773103744434,10.489,85.799,85.756,3.83615687]
[1773103744937,10.49,85.791,85.75,10.57082543]
[1773103745234,10.49,85.791,85.748,10.57082543]
[1773103745430,10.49,85.791,85.747,10.57082543]
[1773103745830,10.49,85.791,85.747,10.66975818]
[1773103746027,10.487,85.813,85.761,3.83615687]
[1773103746234,14.4596696,85.813,85.761,3.83615687]
[1773103746433,3.9726696,85.813,85.761,3.83615687]
[1773103747437,10.489,85.798,85.761,3.83615687]
[1773103750838,3.9726696,85.808,85.761,3.83615687]
[1773103751233,10.487,85.816,85.761,3.83615687]
[1773103751628,10.487,85.816,85.78,3.47535854]
[1773103752036,3.9726696,85.824,85.781,3.83615687]
[1773103752037,10.486,85.824,85.781,3.83615687]
[1773103752235,10.486,85.824,85.79,3.47535854]
[1773103753936,10.486,85.817,85.781,3.83615687]
[1773103754538,10.486,85.817,85.79,3.47535854]
[1773103755441,10.487,85.811,85.78,3.47535854]
[1773103755840,10.487,85.811,85.79,3.47535854]
[1773103756236,10.487,85.811,85.769,3.83615687]
[1773103756540,10.487,85.811,85.79,3.47535854]
[1773103756741,10.486,85.82,85.79,3.47535854]
[1773103757635,10.486,85.82,85.75,14.25591908]
[1773103757636,3.9726696,85.819,85.78,3.47535854]
[1773103758841,10.488,85.808,85.78,3.47535854]
[1773103759540,3.9726696,85.815,85.79,3.47535854]
[1773103760241,14.4596696,85.814,85.79,3.47535854]
[1773103760445,3.9726696,85.813,85.78,3.47535854]
[1773103761348,10.487,85.812,85.78,3.47535854]
[1773103761546,10.487,85.812,85.78,3.47569743]
[1773103765846,22.0,85.844,85.751,3.83615687]
[1773103765847,3.9726696,85.804,85.751,3.83615687]
[1773103766042,3.9726696,85.804,85.76,3.47569743]
[1773103766246,3.9726696,85.804,85.77,3.47569743]
[1773103766844,3.9726696,85.804,85.76,7.3118543]
[1773103767047,3.9726696,85.817,85.78,3.47569743]
[1773103769855,3.9726696,85.817,85.79,3.47569743]
[1773103770249,3.9726696,85.817,85.78,3.47569743]
[1773103771152,22.0,85.87,85.75,3.47569743]
[1773103771153,3.9726696,85.783,85.75,3.47569743]
[1773103771355,3.9726696,85.783,85.74,3.47569743]
[1773103773658,3.93085337,85.788,85.75,3.47569743]
[1773103773949,10.489,85.798,85.76,3.47569743]
[1773103774149,3.93085337,85.829,85.79,3.47569743]
[1773103774453,3.93085337,85.829,85.771,3.8048041]
[1773103774454,3.93085337,85.829,85.78,3.47569743]
[1773103774952,3.93085337,85.818,85.78,3.47569743]
[1773103775653,3.93085337,85.818,85.77,3.47569743]
[1773103776249,10.488,85.807,85.77,3.47569743]
[1773103778158,14.41885337,85.807,85.77,3.47569743]
[1773103778558,14.41885337,85.807,85.76,7.28050153]
[1773103778755,14.41885337,85.807,85.77,3.47569743]
[1773103783159,3.93085337,85.807,85.77,3.47569743]
[1773103784162,3.93085337,85.807,85.77,7.28050153]
[1773103784364,10.487,85.815,85.78,3.47569743]
[1773103784661,10.487,85.815,85.772,3.8048041]
[1773103785464,10.487,85.815,85.78,3.47569743]
[1773103785969,3.93085337,85.823,85.781,3.8048041]
[1773103786961,3.93085337,85.823,85.783,10.491]
[1773103787165,3.93085337,85.823,85.79,3.47569743]
[1773103789171,3.93085337,85.823,85.783,10.491]
[1773103789572,10.485,85.83,85.79,3.47569743]
[1773103789870,4.00178956,85.835,85.791,3.8473402]
[1773103790175,4.00178956,85.835,85.78,3.47569743]
[1773103790471,4.00178956,85.826,85.781,10.491]
[1773103791767,4.00178956,85.823,85.78,3.47569743]
[1773103792168,4.00178956,85.815,85.773,14.25591908]
[1773103792372,4.00178956,85.815,85.77,3.47569743]
[1773103793271,4.00178956,85.815,85.77,13.96769743]
[1773103793473,4.00178956,85.815,85.771,3.8473402]
[1773103793973,14.48878956,85.814,85.771,3.8473402]
[1773103794372,10.488,85.805,85.77,3.47569743]
[1773103794671,14.48978956,85.805,85.77,3.47569743]
[1773103795876,14.48978956,85.805,85.768,3.8473402]
[1773103796777,10.487,85.812,85.771,3.8473402]
[1773103798675,14.48878956,85.812,85.771,3.8473402]
[1773103798974,20.967,85.843,85.752,14.22288987]
[1773103798975,4.00178956,85.808,85.752,14.22288987]
[1773103799178,4.00178956,85.808,85.75,3.47569743]
[1773103799375,4.00178956,85.808,85.75,7.32303763]
[1773103799677,4.00178956,85.808,85.751,3.8473402]
[1773103800378,10.488,85.802,85.76,3.47569743]
[1773103800778,4.00178956,85.801,85.751,14.22288987]
[1773103801072,4.00178956,85.799,85.75,3.47569743]
[1773103801278,4.00178956,85.796,85.747,14.22288987]
[1773103801478,4.00178956,85.796,85.74,3.47569743]
[1773103801780,4.00178956,85.796,85.741,3.8473402]
[1773103801978,4.00178956,85.793,85.76,3.47569743]
[1773103802378,4.00178956,85.809,85.761,3.8473402]
[1773103802681,10.488,85.807,85.761,3.8473402]
[1773103803184,4.00178956,85.806,85.761,3.8473402]
[1773103803478,4.00178956,85.806,85.74,21.36171257]
[1773103803479,3.88860093,85.822,85.78,3.47569743]
[1773103803677,3.88860093,85.822,85.79,3.47569743]
[1773103804870,3.47569743,85.8,85.76,0.00095542]
[1773103805072,3.47569743,85.8,85.704,35.60285428]
[1773103805073,3.47569743,85.77,85.724,5.37214259]
[1773103805472,10.88508733,85.812,85.724,5.37214259]
[1773103805679,3.47569743,85.78,85.724,5.37214259]
[1773103806478,3.47569743,85.77,85.727,5.37214259]
[1773103810984,10.49,85.791,85.741,5.31607497]
[1773103811490,10.49,85.791,85.75,3.47569743]
[1773103812688,3.47569743,85.78,85.73,3.47569743]
[1773103813187,3.47569743,85.78,85.726,5.31703109]
[1773103813385,10.493,85.765,85.726,5.31703109]
[1773103813790,10.493,85.765,85.668,28.46406274]
[1773103813791,3.47569743,85.76,85.71,8.7758319]
[1773103814184,3.47569743,85.76,85.711,5.30013447]
[1773103814788,10.494,85.758,85.711,5.30013447]
[1773103815587,14.52211307,85.821,85.711,5.30013447]
[1773103815588,10.495,85.751,85.711,5.30013447]
[1773103816289,10.493,85.76,85.711,5.30013447]
[1773103816788,9.32548677,85.78,85.693,5.29718084]
[1773103816789,10.495,85.747,85.693,5.29718084]
[1773103817685,10.494,85.755,85.695,10.501]
[1773103817891,10.494,85.755,85.696,5.30655689]
[1773103818591,10.493,85.766,85.713,5.30655689]
[1773103818788,9.32548677,85.8,85.713,5.30655689]
[1773103819685,10.49,85.791,85.734,5.30502614]
[1773103820490,9.32548677,85.82,85.734,5.30502614]
[1773103820793,9.32548677,85.8,85.734,5.30502614]
[1773103820994,10.491,85.778,85.734,5.30502614]
[1773103821886,9.32548677,85.8,85.719,5.3030906]
[1773103822092,9.32548677,85.78,85.719,5.3030906]
[1773103823693,9.32380649,85.79,85.719,5.3030906]
[1773103825996,10.494,85.755,85.704,5.29520767]
[1773103827595,10.494,85.755,85.708,10.5]
[1773103827795,20.981,85.785,85.704,5.29520767]
[1773103827996,22.0,85.784,85.704,5.29520767]
[1773103829094,10.493,85.761,85.713,5.24624787]
[1773103829692,10.494,85.754,85.713,5.24624787]
[1773103830098,22.0,85.784,85.713,5.24624787]
[1773103830299,22.0,85.789,85.713,5.24624787]
[1773103832297,22.0,85.789,85.717,5.24633234]
[1773103833300,10.493,85.76,85.717,5.24633234]
[1773103835396,22.0,85.789,85.72,5.20255237]
[1773103835596,22.0,85.789,85.71,9.32380649]
[1773103835597,3.47960845,85.78,85.731,5.20255237]
[1773103836002,3.47960845,85.77,85.71,3.47960845]
[1773103836404,3.47960845,85.77,85.711,5.20255237]
[1773103836803,163.175,85.794,85.695,5.20255237]
[1773103837005,3.47960845,85.73,85.681,5.20271255]
[1773103837707,10.497,85.729,85.681,5.20271255]
[1773103838501,10.496,85.738,85.691,5.20271255]
[1773103842404,10.497,85.729,85.691,5.20271255]
[1773103842709,3.47960845,85.74,85.691,5.20271255]
[1773103843115,3.47960845,85.75,85.691,5.20271255]
[1773103843610,10.496,85.741,85.7,3.47960845]
[1773103843811,10.496,85.741,85.7,8.68424306]
[1773103844016,3.47960845,85.77,85.71,3.47960845]
[1773103844209,3.47960845,85.76,85.701,5.20463461]
[1773103844408,3.47960845,85.75,85.701,5.20463461]
[1773103845418,3.47960845,85.75,85.691,5.17734934]
[1773103845618,3.47960845,85.72,85.661,5.17734934]
[1773103845913,3.47960845,85.71,85.661,5.17734934]
[1773103846316,10.502,85.69,85.65,3.47960845]
[1773103846814,3.47960845,85.71,85.66,3.47960845]
[1773103847120,3.47960845,85.72,85.67,3.47960845]
[1773103847516,9.33482567,85.74,85.661,5.17734934]
[1773103850311,10.5,85.708,85.661,5.17734934]
[1773103852626,9.33482567,85.74,85.661,5.17734934]
[1773103852826,9.33482567,85.72,85.661,5.17734934]
[1773103853023,22.0,85.719,85.661,5.17734934]
[1773103853627,22.0,85.719,85.631,5.15501674]
[1773103853628,10.504,85.676,85.631,5.15501674]
[1773103853929,9.33482567,85.7,85.631,5.15501674]
[1773103854126,20.998,85.717,85.631,5.15501674]
[1773103855328,10.503,85.685,85.633,5.16204644]
[1773103856030,10.503,85.685,85.635,5.16204644]
[1773103857031,10.504,85.677,85.635,5.16204644]
[1773103857432,9.33482567,85.72,85.635,5.16204644]
[1773103857930,163.284,85.736,85.635,5.16204644]
[1773103857931,9.33482567,85.7,85.635,5.16204644]
[1773103858133,9.33482567,85.7,85.61,5.16690109]
[1773103858532,10.504,85.676,85.622,5.16690109]
[1773103859330,10.504,85.676,85.626,5.16773339]
[1773103859932,10.503,85.684,85.629,5.16773339]
[1773103860836,9.33482567,85.72,85.629,5.16773339]
[1773103861040,20.998,85.718,85.629,5.16773339]
[1773103862134,10.502,85.693,85.636,5.17582511]
[1773103862641,10.502,85.693,85.62,9.33482567]
[1773103862642,9.33482567,85.75,85.641,5.17582511]
[1773103862940,10.499,85.717,85.665,5.17582511]
[1773103863841,10.499,85.717,85.66,9.33482567]
[1773103863842,10.499,85.717,85.667,5.16125876]
[1773103864339,10.497,85.73,85.674,5.16137213]
[1773103865346,10.497,85.73,85.676,5.17586979]
[1773103866548,20.986,85.764,85.676,5.17586979]
[1773103866549,10.498,85.723,85.676,5.17586979]
[1773103867538,10.497,85.732,85.678,5.17718647]
[1773103868346,10.497,85.732,85.68,5.17718647]
[1773103871248,20.986,85.764,85.68,5.17718647]
[1773103872449,10.496,85.739,85.682,5.17613766]
[1773103872946,22.0,85.763,85.682,5.17613766]
[1773103874046,10.498,85.723,85.682,5.17613766]
[1773103874845,10.498,85.723,85.671,10.504]
[1773103874846,9.33482567,85.75,85.664,5.16533823]
[1773103875346,20.99,85.749,85.664,5.16533823]
[1773103876250,10.5,85.71,85.664,5.16533823]
[1773103877346,10.498,85.719,85.666,5.16058041]
[1773103877755,20.99,85.749,85.666,5.16058041]
[1773103879453,10.5,85.708,85.666,5.16058041]
[1773103880250,10.501,85.701,85.666,5.16058041]
[1773103880454,9.33482567,85.75,85.666,5.16058041]
[1773103880750,20.994,85.731,85.666,5.16058041]
[1773103881355,9.33482567,85.75,85.666,5.16058041]
[1773103882051,10.5,85.709,85.666,5.16058041]
[1773103883555,10.499,85.717,85.669,5.15515983]
[1773103884159,10.498,85.724,85.671,5.15515983]
[1773103884961,10.499,85.717,85.676,5.15515983]
[1773103885354,10.82704964,85.775,85.681,5.14258014]
[1773103885553,9.3313512,85.78,85.681,5.14258014]
[1773103886356,10.497,85.731,85.684,5.14258014]
[1773103887859,9.3313512,85.76,85.684,5.14258014]
[1773103889467,10.499,85.718,85.684,5.14258014]
[1773103892761,10.499,85.718,85.69,3.48379094]
[1773103893564,10.498,85.726,85.69,3.48379094]
[1773103894064,10.498,85.72,85.684,5.14258014]
[1773103895869,10.498,85.72,85.69,3.48379094]
[1773103897863,22.0,85.739,85.69,3.48379094]
[1773103897864,10.499,85.714,85.69,3.48379094]
[1773103898065,10.499,85.714,85.684,5.14258014]
[1773103898267,10.499,85.714,85.651,21.36171257]
[1773103898268,3.48379094,85.73,85.67,8.58260749]
[1773103898462,3.48379094,85.73,85.625,21.02]
[1773103898463,3.48379094,85.72,85.66,3.48379094]
[1773103898667,3.48379094,85.71,85.65,3.48379094]
[1773103899064,10.503,85.682,85.65,3.48379094]
[1773103899463,3.48379094,85.71,85.65,3.48379094]
[1773103899664,3.48379094,85.71,85.66,3.48379094]
[1773103900564,10.502,85.69,85.66,3.48379094]
[1773103900965,10.502,85.69,85.65,3.48379094]
[1773103901571,10.503,85.683,85.65,3.48379094]
[1773103901772,3.48379094,85.7,85.644,5.09881655]
[1773103903071,10.503,85.685,85.65,3.48379094]
[1773103903467,10.503,85.685,85.644,5.09881655]
[1773103904172,10.503,85.678,85.644,5.09881655]
[1773103905067,10.503,85.678,85.65,3.48379094]
[1773103908072,10.503,85.678,85.644,5.09881655]
[1773103908973,10.503,85.686,85.65,3.48379094]
[1773103910268,10.503,85.68,85.65,3.48379094]
[1773103910468,3.48379094,85.7,85.644,5.09881655]
[1773103910664,3.48379094,85.7,85.628,10.51]
[1773103910975,3.48379094,85.68,85.63,3.48379094]
[1773103911376,10.505,85.663,85.631,5.06964662]
[1773103912272,3.48379094,85.68,85.63,3.48379094]
[1773103913471,10.505,85.665,85.63,3.48379094]
[1773103913676,3.48379094,85.68,85.63,3.48379094]
[1773103914373,10.505,85.665,85.63,3.48379094]
[1773103915774,10.506,85.658,85.63,3.48379094]
[1773103915976,10.506,85.658,85.621,5.05977659]
[1773103918272,10.505,85.666,85.621,5.05977659]
[1773103918578,3.48379094,85.69,85.64,3.48379094]
[1773103918873,10.503,85.681,85.651,5.06024927]
[1773103919077,22.0,85.689,85.651,5.06024927]
[1773103920374,10.502,85.689,85.651,5.06024927]
[1773103920577,10.502,85.689,85.641,10.508]
[1773103920578,10.502,85.689,85.66,8.53563963]
[1773103921072,10.502,85.689,85.65,3.48379094]
[1773103922478,10.502,85.689,85.651,5.0747675]
[1773103922676,10.501,85.697,85.66,8.55855844]
[1773103922871,10.501,85.697,85.66,5.0747675]
[1773103923878,10.502,85.689,85.66,5.0747675]
[1773103926670,10.503,85.682,85.66,5.0747675]
[1773103926979,10.503,85.682,85.65,3.48379094]
[1773103928377,3.48379094,85.69,85.634,5.09633621]
[1773103928572,3.48379094,85.67,85.62,3.48379094]
[1773103928881,3.48379094,85.68,85.63,3.48379094]
[1773103929975,10.82704964,85.729,85.641,5.09245689]
[1773103930170,3.48379094,85.7,85.65,3.48379094]
[1773103931071,10.503,85.685,85.65,3.48379094]
[1773103931980,3.48379094,85.67,85.619,5.09314522]
[1773103932179,3.48379094,85.67,85.621,5.09314522]
[1773103935485,10.506,85.659,85.621,5.09314522]
[1773103936189,10.505,85.667,85.621,5.09314522]
[1773103936381,3.48379094,85.67,85.621,5.09314522]
[1773103936892,10.82704964,85.722,85.621,5.09314522]
[1773103936893,10.505,85.663,85.621,5.09314522]
[1773103941887,10.504,85.671,85.622,5.01462809]
[1773103942197,10.504,85.671,85.631,5.01462809]
[1773103944296,10.505,85.663,85.62,3.48379094]
[1773103944501,3.48379094,85.67,85.614,5.01583519]
[1773103945297,3.48379094,85.68,85.621,5.01325078]
[1773103945600,10.505,85.664,85.621,5.01325078]
[1773103945800,3.48890519,85.67,85.621,5.01325078]
[1773103946198,10.506,85.654,85.621,5.01325078]
[1773103946395,3.48890519,85.67,85.621,5.01325078]
[1773103947492,3.48890519,85.68,85.621,5.01325078]
[1773103947797,3.48890519,85.68,85.631,4.98176185]
[1773103948895,3.48890519,85.69,85.631,4.98176185]
[1773103949498,10.505,85.667,85.631,4.98176185]
[1773103960208,10.504,85.674,85.64,8.47674294]
[1773103960510,10.504,85.674,85.64,4.98783775]
[1773103963613,3.48890519,85.69,85.63,3.48890519]
[1773103963614,10.505,85.668,85.63,3.48890519]
[1773103963803,10.505,85.668,85.631,5.01482699]
[1773103968719,10.505,85.662,85.631,5.01482699]
[1773103970115,10.505,85.662,85.622,14.15973466]
[1773103970317,10.506,85.656,85.62,3.48890519]
[1773103970621,10.506,85.656,85.621,5.01835833]
[1773103978124,22.0,85.7,85.65,8.51300003]
[1773103978324,22.0,85.709,85.66,3.48890519]
[1773103978523,22.0,85.709,85.65,5.02409484]
[1773103978725,22.0,85.709,85.66,3.48890519]
[1773103979424,22.0,85.709,85.65,5.02409484]
[1773103979624,3.48890519,85.7,85.651,5.02711776]
[1773103979821,3.48890519,85.7,85.64,8.51602295]
[1773103980525,3.48890519,85.7,85.641,5.02711776]
[1773103981428,10.504,85.674,85.641,5.02711776]
[1773103981824,3.48890519,85.7,85.641,5.02711776]
[1773103982034,22.0,85.709,85.576,163.588]
[1773103982035,22.0,85.709,85.66,3.48890519]
[1773103982325,25.48890519,85.71,85.66,3.48890519]
[1773103982526,10.502,85.689,85.66,3.48890519]
[1773103982926,10.502,85.689,85.651,5.04619944]
[1773103984429,14.52211307,85.738,85.607,28.43278322]
[1773103984430,163.377,85.687,85.607,28.43278322]
[1773103984623,3.48890519,85.62,85.565,28.05956971]
[1773103984831,3.48890519,85.61,85.565,28.05956971]
[1773103985129,3.48890519,85.6,85.55,28.05956971]
[1773103985923,3.48890519,85.61,85.55,31.5484749]
[1773103986330,10.514,85.596,85.55,31.5484749]
[1773103986731,10.514,85.596,85.56,31.52004986]
[1773103988636,10.515,85.588,85.56,31.52004986]
[1773103989030,10.513,85.597,85.56,31.52004986]
[1773103992836,3.48890519,85.59,85.523,27.99305025]
[1773103993031,3.48890519,85.59,85.45,23.31]
[1773103993032,3.48890519,85.58,85.478,27.98230817]
[1773103993231,3.48890519,85.57,85.52,31.47121336]
[1773103993629,21.022,85.618,85.54,3.48890519]
[1773103993831,3.48890519,85.59,85.54,31.47121336]
[1773103994041,3.48890519,85.59,85.54,27.98230817]
[1773103994440,3.48890519,85.59,85.54,31.47121336]
[1773103994742,163.457,85.645,85.551,27.98230817]
[1773103994743,21.016,85.644,85.551,27.98230817]
[1773103994938,3.48890519,85.61,85.56,3.48890519]
[1773103995142,10.513,85.601,85.56,31.47121336]
[1773103997240,10.513,85.601,85.56,27.98230817]
[1773103997632,3.48890519,85.6,85.56,27.98230817]
[1773103997837,3.48890519,85.6,85.547,28.05029]
[1773103998633,10.515,85.585,85.547,28.05029]
[1773103998840,3.48890519,85.6,85.547,28.05029]
[1773104000443,10.515,85.585,85.547,28.05029]
[1773104000644,3.48890519,85.6,85.492,2.03373784]
[1773104000645,3.48890519,85.62,85.57,31.5002745]
[1773104001045,2.0329834,85.652,85.57,31.5002745]
[1773104001046,10.512,85.608,85.57,31.5002745]
[1773104001745,10.511,85.618,85.58,3.48890519]
[1773104002148,3.48890519,85.63,85.58,3.48890519]
[1773104002547,3.48890519,85.63,85.57,31.5002745]
[1773104002744,10.513,85.603,85.57,31.5002745]
[1773104005050,10.512,85.611,85.57,31.5002745]
[1773104005542,3.48890519,85.62,85.518,34.99]
[1773104005745,3.48890519,85.53,85.461,28.94450906]
[1773104005946,163.573,85.585,85.461,28.94450906]
[1773104005947,3.48890519,85.52,85.461,28.94450906]
[1773104006152,3.48890519,85.52,85.461,26.91450906]
[1773104006346,3.48890519,85.52,85.47,3.48890519]
[1773104007347,10.523,85.519,85.47,3.48890519]
[1773104007549,10.523,85.519,85.442,10.532]
[1773104007849,9.37757207,85.54,85.44,9.37757207]
[1773104008355,9.37757207,85.54,85.441,28.19867067]
[1773104009352,10.524,85.507,85.441,28.19867067]
[1773104010953,163.573,85.585,85.44,9.37757207]
[1773104010954,9.37757207,85.58,85.481,28.2473699]
[1773104012356,9.37757207,85.6,85.501,28.25986457]
[1773104012659,10.519,85.553,85.501,28.25986457]
[1773104013861,9.37757207,85.58,85.501,28.25986457]
[1773104015463,10.519,85.553,85.501,28.25986457]
[1773104015866,9.37757207,85.58,85.501,28.25986457]
[1773104017365,10.52,85.543,85.501,28.25986457]
[1773104017767,9.37757207,85.56,85.501,28.25986457]
[1773104017972,9.37757207,85.56,85.47,10.529]
[1773104017973,10.521,85.531,85.473,28.24702778]
[1773104022875,10.523,85.522,85.473,28.24702778]
[1773104024179,9.37757207,85.58,85.485,22.93955705]
[1773104024379,9.37757207,85.58,85.501,22.93955705]
[1773104024876,21.032,85.577,85.501,22.93955705]
[1773104027384,10.52,85.542,85.501,22.93955705]
[1773104027985,10.521,85.532,85.501,22.93955705]
[1773104030284,9.37757207,85.56,85.501,22.93955705]
[1773104030285,10.52,85.54,85.501,22.93955705]
[1773104036293,10.519,85.548,85.501,22.93955705]
[1773104038895,10.85771623,85.618,85.504,22.98128447]
[1773104039097,22.0,85.579,85.504,22.98128447]
[1773104039288,22.0,85.589,85.504,22.98128447]
[1773104040496,9.37757207,85.59,85.504,22.98128447]
[1773104040497,10.519,85.552,85.504,22.98128447]
[1773104040697,22.0,85.59,85.504,22.98128447]
[1773104040993,43.027,85.597,85.504,22.98128447]
[1773104041901,9.37757207,85.6,85.527,22.97437545]
[1773104042101,9.37757207,85.62,85.527,22.97437545]
[1773104043404,10.517,85.57,85.527,22.97437545]
[1773104043802,21.023,85.613,85.529,22.97113203]
[1773104044000,10.516,85.574,85.529,22.97113203]
[1773104046907,9.37757207,85.6,85.529,22.97113203]
[1773104047506,21.027,85.598,85.529,22.97113203]
[1773104047900,9.37757207,85.6,85.508,22.96901196]
[1773104048401,10.519,85.551,85.508,22.96901196]
[1773104048808,10.518,85.562,85.517,22.96901196]
[1773104049707,10.517,85.57,85.517,22.96901196]
[1773104051506,10.517,85.57,85.521,22.99755347]
[1773104052106,10.518,85.563,85.524,22.99755347]
[1773104052316,21.027,85.597,85.524,22.99755347]
[1773104053314,9.37757207,85.6,85.526,23.00859445]
[1773104053315,10.516,85.576,85.526,23.00859445]
[1773104053613,10.516,85.576,85.515,14.14222243]
[1773104053614,10.516,85.576,85.541,23.00859445]
[1773104054412,10.517,85.57,85.541,23.00859445]
[1773104056617,10.517,85.57,85.55,3.49484087]
[1773104056914,10.517,85.57,85.541,23.00859445]
[1773104060815,3.49484087,85.58,85.527,23.01443067]
[1773104061013,10.85123511,85.618,85.527,23.01443067]
[1773104061316,3.49484087,85.58,85.527,23.01443067]
[1773104062317,10.519,85.555,85.527,23.01443067]
[1773104063217,10.518,85.562,85.53,3.49484087]
[1773104063414,10.518,85.562,85.53,26.49621349]
[1773104064119,10.518,85.556,85.53,26.49621349]
[1773104064818,10.519,85.549,85.53,26.49621349]
[1773104065114,3.49484087,85.58,85.53,26.49621349]
[1773104066112,21.03,85.587,85.53,26.49621349]
[1773104066318,10.518,85.556,85.53,26.49621349]
[1773104067616,10.518,85.556,85.53,26.49734999]
[1773104070013,10.518,85.564,85.53,26.49734999]
[1773104070419,22.0,85.586,85.53,26.49734999]
[1773104070721,43.03,85.587,85.53,26.49734999]
[1773104071124,3.49597737,85.58,85.53,26.49734999]
[1773104071315,10.519,85.55,85.53,26.49734999]
[1773104071820,3.49597737,85.58,85.53,26.49734999]
[1773104072022,43.03,85.587,85.53,26.49734999]
[1773104072615,22.0,85.587,85.53,26.49734999]
[1773104074524,10.518,85.564,85.53,26.49734999]
[1773104075825,10.518,85.564,85.519,14.14222243]
[1773104075826,3.49597737,85.56,85.504,22.96151402]
[1773104077520,3.49597737,85.56,85.51,3.49597737]
[1773104078430,10.521,85.539,85.51,3.49597737]
[1773104079131,3.49597737,85.56,85.511,22.87151485]
[1773104080232,10.522,85.531,85.511,22.87151485]